bitfinex-derivatives/quotes_ETHF0:USTF0_20230105
["timestamp","ask_amount","ask_price","bid_price","bid_amount"]
[1672893266146,2.5,1253.2,1252.9,3.0073]
[1672893267072,2.5,1253.2,1252.9,5.5073]
[1672893268447,2.5,1253.2,1252.9,2.5]
[1672893268978,2.5,1253.2,1252.8,8.49002726]
[1672893269184,2.5,1253.2,1252.8,6.69961711]
[1672893269395,2.5,1253.2,1252.8,3.69231711]
[1672893269608,2.5,1253.2,1252.8,6.69961711]
[1672893270767,2.5,1253.2,1252.8,8.49002726]
[1672893271921,2.5,1253.2,1252.8,5.48272726]
[1672893272238,2.5,1253.2,1252.8,8.49002726]
[1672893272866,2.5,1253.2,1252.8,5.48272726]
[1672893273073,2.5,1253.2,1252.8,8.49002726]
[1672893275608,2.5,1253.2,1252.8,5.48272726]
[1672893275821,2.5,1253.2,1252.8,8.49002726]
[1672893277498,2.5,1253.2,1252.9,1.19231711]
[1672893277709,2.5,1253.2,1253.0,2.5]
[1672893278446,2.5,1253.2,1252.9,3.69231711]
[1672893280227,5.5073,1253.2,1252.9,3.69231711]
[1672893281388,2.5,1253.2,1252.9,6.69961711]
[1672893281799,2.5,1253.2,1252.9,3.69231711]
[1672893282008,2.5,1253.2,1252.9,6.69961711]
[1672893282648,10.473,1253.2,1252.9,6.69961711]
[1672893283588,2.0,1253.3,1252.9,8.49002726]
[1672893283802,2.0,1253.3,1253.0,2.5]
[1672893284428,10.473,1253.4,1253.1,3.0073]
[1672893284429,2.5,1253.4,1253.1,3.0073]
[1672893284847,2.5,1253.4,1253.2,1.5]
[1672893285478,7.973,1253.5,1253.2,1.5]
[1672893285902,10.9803,1253.5,1253.2,1.5]
[1672893286108,2.5,1253.4,1253.2,1.5]
[1672893286324,3.0073,1253.5,1253.2,1.5]
[1672893286539,3.0073,1253.9,1253.3,3.0073]
[1672893286740,3.0073,1253.9,1253.3,4.19961711]
[1672893286951,2.5,1253.8,1253.4,2.5]
[1672893288950,10.473,1253.8,1253.4,2.5]
[1672893289477,2.5,1253.8,1253.5,3.0073]
[1672893289792,2.5,1253.8,1253.6,2.5]
[1672893290631,5.5073,1253.9,1253.6,2.5]
[1672893290843,2.5,1253.8,1253.6,2.5]
[1672893292529,2.5,1253.8,1253.5,3.0073]
[1672893297045,3.0073,1253.7,1253.5,3.0073]
[1672893297252,2.5,1253.6,1253.3,5.5073]
[1672893301252,2.5,1253.6,1253.3,6.69961711]
[1672893301455,2.5,1253.6,1253.3,5.5073]
[1672893302825,2.5,1253.6,1253.3,6.69961711]
[1672893303037,2.5,1253.6,1253.3,5.5073]
[1672893307022,2.5,1253.6,1253.3,5.50475151]
[1672893307759,2.5,1253.6,1253.3,2.49745151]
[1672893307975,2.5,1253.6,1253.3,5.50475151]
[1672893308502,2.5,1253.6,1253.3,2.49745151]
[1672893308713,2.5,1253.6,1253.3,5.50475151]
[1672893308931,2.5,1253.6,1253.3,2.49745151]
[1672893309238,2.5,1253.6,1253.3,5.50475151]
[1672893313856,2.5,1253.6,1253.3,2.49745151]
[1672893314174,2.5,1253.6,1253.3,5.50475151]
[1672893317435,2.5,1253.6,1253.3,3.0073]
[1672893319951,5.5073,1253.6,1253.2,8.49002726]
[1672893320475,13.4803,1253.6,1253.2,8.49002726]
[1672893322368,10.473,1253.6,1253.2,5.48272726]
[1672893322683,13.4803,1253.6,1253.2,8.49002726]
[1672893323314,13.4803,1253.6,1253.3,1.19231711]
[1672893324687,10.473,1253.6,1253.3,1.19231711]
[1672893325002,13.4803,1253.6,1253.3,1.19231711]
[1672893328997,10.473,1253.6,1253.3,1.19231711]
[1672893329205,13.4803,1253.6,1253.3,1.19231711]
[1672893331413,10.473,1253.6,1253.3,1.19231711]
[1672893331617,13.4803,1253.6,1253.3,1.19231711]
[1672893332148,18.26348145,1253.6,1253.3,1.19231711]
[1672893333302,13.4803,1253.6,1253.3,1.19231711]
[1672893333507,15.25618145,1253.6,1253.3,1.19231711]
[1672893334986,10.473,1253.6,1253.3,1.19231711]
[1672893335197,10.473,1253.6,1253.3,2.98272726]
[1672893336672,10.473,1253.6,1253.4,2.5]
[1672893336887,2.5,1253.6,1253.4,6.69961711]
[1672893338140,7.973,1253.5,1253.1,5.37213817]
[1672893338362,7.973,1253.5,1253.1,2.98593719]
[1672893338363,7.973,1253.3,1253.1,2.98593719]
[1672893338559,9.973,1253.3,1253.2,2.5]
[1672893339722,9.973,1253.3,1253.1,3.69552704]
[1672893339932,2.5,1253.2,1253.1,3.69552704]
[1672893343296,9.973,1253.3,1253.1,3.69552704]
[1672893343507,2.5,1253.2,1253.1,3.69552704]
[1672893344761,2.0,1253.3,1253.1,3.69552704]
[1672893347085,2.0,1253.3,1253.1,6.70282704]
[1672893350761,2.5,1253.4,1253.1,6.70282704]
[1672893350975,2.5,1253.4,1253.1,8.49323719]
[1672893353495,2.5,1253.4,1253.1,5.48593719]
[1672893353706,2.5,1253.4,1253.1,8.49323719]
[1672893354545,2.5,1253.4,1253.1,5.48593719]
[1672893354757,2.5,1253.4,1253.1,8.49323719]
[1672893359067,2.5,1253.4,1253.1,5.48593719]
[1672893359385,2.5,1253.4,1253.1,8.49323719]
[1672893360854,2.5,1253.4,1253.1,5.48593719]
[1672893361068,2.5,1253.4,1253.1,8.49323719]
[1672893361488,2.5,1253.4,1253.1,5.48593719]
[1672893361804,2.5,1253.4,1253.1,8.49323719]
[1672893362217,2.5,1253.4,1253.1,6.70282704]
[1672893363164,2.5,1253.4,1253.1,8.49323719]
[1672893364009,2.5,1253.4,1253.1,5.48593719]
[1672893364322,2.5,1253.4,1253.1,8.49323719]
[1672893364630,2.5,1253.4,1253.1,5.48593719]
[1672893364846,2.5,1253.4,1253.1,8.49323719]
[1672893366842,2.5,1253.4,1253.1,5.48593719]
[1672893367159,2.5,1253.4,1253.1,8.49323719]
[1672893369050,2.5,1253.4,1253.1,5.48593719]
[1672893369371,2.5,1253.4,1253.1,8.49323719]
[1672893370725,10.473,1253.4,1253.1,4.20282704]
[1672893370936,3.0073,1253.3,1253.1,1.19552704]
[1672893371146,2.0,1253.2,1253.0,5.48593719]
[1672893375672,2.0,1253.2,1253.0,2.98593719]
[1672893377248,2.0,1253.2,1253.1,1.19552704]
[1672893377458,2.0,1253.2,1253.1,3.69552704]
[1672893378499,2.0,1253.2,1252.9,1.79041015]
[1672893378500,9.973,1253.2,1252.9,1.79041015]
[1672893378718,14.16051541,1253.2,1252.9,4.29041015]
[1672893379242,14.16051541,1253.2,1252.9,2.5]
[1672893379659,17.16781541,1253.2,1252.8,6.67661113]
[1672893381132,5.0073,1253.2,1252.9,4.29041015]
[1672893381549,9.19481541,1253.2,1252.9,4.29041015]
[1672893382186,5.0073,1253.2,1252.9,4.29041015]
[1672893384186,2.0,1253.2,1252.9,4.29041015]
[1672893386485,2.0,1253.2,1253.0,4.79771015]
[1672893386701,3.0073,1253.3,1253.1,2.5]
[1672893387435,6.68751541,1253.4,1253.1,2.5]
[1672893388593,4.18751541,1253.4,1253.1,2.5]
[1672893388902,6.68751541,1253.5,1253.3,1.5]
[1672893394061,6.68751541,1253.5,1253.1,4.29041015]
[1672893394266,6.68751541,1253.5,1253.2,3.0073]
[1672893394902,6.68751541,1253.5,1253.1,4.29041015]
[1672893395110,6.68751541,1253.5,1253.2,3.0073]
[1672893396685,6.68751541,1253.5,1253.1,4.29041015]
[1672893397318,6.68751541,1253.5,1253.2,3.0073]
[1672893399208,2.5,1253.5,1253.2,3.0073]
[1672893399944,6.68751541,1253.5,1253.3,1.5]
[1672893400145,2.5,1253.5,1253.3,1.5]
[1672893403511,2.5,1253.5,1253.2,3.0073]
[1672893403727,2.5,1253.5,1253.3,1.5]
[1672893403940,6.68751541,1253.5,1253.3,1.5]
[1672893404351,6.68751541,1253.5,1253.1,2.5]
[1672893404882,6.68751541,1253.5,1253.1,5.5073]
[1672893405198,6.68751541,1253.5,1253.1,7.29771015]
[1672893405409,6.68751541,1253.5,1253.1,5.5073]
[1672893406468,6.68751541,1253.5,1253.1,2.5]
[1672893406680,6.68751541,1253.5,1253.1,5.5073]
[1672893407302,3.0073,1253.4,1253.1,2.5]
[1672893407619,2.5,1253.3,1253.1,2.5]
[1672893410879,2.5,1253.3,1253.0,5.5073]
[1672893411406,2.5,1253.3,1253.0,7.29771015]
[1672893415299,2.5,1253.3,1253.0,4.29041015]
[1672893415507,2.5,1253.3,1253.1,3.0073]
[1672893415710,2.5,1253.3,1253.2,2.5]
[1672893416344,2.5,1253.3,1253.1,3.0073]
[1672893417718,2.5,1253.3,1253.2,2.5]
[1672893421925,6.68751541,1253.4,1253.2,2.5]
[1672893422653,14.66051541,1253.4,1253.0,6.67661113]
[1672893422865,3.0073,1253.3,1252.9,7.29771015]
[1672893423073,2.5,1253.2,1252.9,7.29771015]
[1672893427068,2.5,1253.2,1252.9,4.29041015]
[1672893427278,2.5,1253.2,1252.9,7.29771015]
[1672893431283,2.5,1253.2,1252.9,4.29041015]
[1672893431491,2.5,1253.2,1252.9,7.29771015]
[1672893431703,2.5,1253.2,1252.9,4.29041015]
[1672893432229,2.5,1253.2,1252.9,7.29771015]
[1672893432540,2.5,1253.2,1252.9,4.29041015]
[1672893432751,2.5,1253.2,1252.8,4.29041015]
[1672893433072,6.68751541,1253.2,1252.8,4.29041015]
[1672893434848,9.69481541,1253.2,1252.8,4.29041015]
[1672893435061,5.5073,1253.2,1252.8,4.29041015]
[1672893435270,9.69481541,1253.2,1252.8,4.29041015]
[1672893435587,5.5073,1253.2,1252.8,4.29041015]
[1672893436636,2.5,1253.2,1252.9,4.79771015]
[1672893436845,2.5,1253.2,1253.0,2.5]
[1672893437271,2.0,1253.3,1253.0,2.5]
[1672893437790,2.0,1253.3,1253.0,4.29041015]
[1672893438430,2.0,1253.3,1253.1,3.0073]
[1672893438637,2.0,1253.3,1253.2,1.5]
[1672893438953,2.0,1253.3,1253.1,3.0073]
[1672893440743,2.0,1253.3,1253.2,1.5]
[1672893442532,6.68751541,1253.4,1253.2,1.5]
[1672893443164,2.5,1253.4,1253.2,1.5]
[1672893443375,6.68751541,1253.4,1253.1,3.0073]
[1672893444635,6.68751541,1253.4,1253.2,1.5]
[1672893448413,6.68751541,1253.4,1253.1,3.0073]
[1672893448931,4.18751541,1253.3,1253.1,3.0073]
[1672893449354,2.5,1253.2,1253.1,3.0073]
[1672893450621,2.5,1253.2,1253.1,3.00013792]
[1672893451884,2.5,1253.2,1253.0,4.29041015]
[1672893452089,2.5,1253.2,1253.0,7.29771015]
[1672893453145,2.5,1253.2,1253.0,5.5073]
[1672893454931,2.5,1253.2,1253.0,2.5]
[1672893455138,2.5,1253.2,1253.0,5.5073]
[1672893455456,2.5,1253.2,1253.0,2.5]
[1672893455663,2.5,1253.2,1253.0,5.5073]
[1672893456719,2.5,1253.2,1253.0,7.29771015]
[1672893457987,9.19481541,1253.3,1253.0,7.29771015]
[1672893458186,2.5,1253.2,1253.0,7.29771015]
[1672893460602,9.19481541,1253.3,1253.0,7.29771015]
[1672893460810,2.5,1253.2,1253.0,7.29771015]
[1672893461759,2.5,1253.2,1253.0,4.29041015]
[1672893461972,2.5,1253.2,1253.0,7.29771015]
[1672893462707,2.5,1253.2,1253.0,4.29041015]
[1672893462919,2.5,1253.2,1253.0,7.29771015]
[1672893464917,9.19481541,1253.3,1253.0,7.29771015]
[1672893465220,2.5,1253.2,1253.0,7.29771015]
[1672893469956,2.5,1253.2,1253.0,4.29041015]
[1672893470167,2.5,1253.2,1253.0,7.29771015]
[1672893470693,2.5,1253.2,1253.0,5.5073]
[1672893471001,2.5,1253.2,1253.0,7.29771015]
[1672893471745,2.5,1253.2,1253.0,5.5073]
[1672893472267,2.5,1253.2,1253.0,7.29771015]
[1672893472681,2.5,1253.2,1253.0,2.5]
[1672893472892,2.5,1253.2,1253.0,5.5073]
[1672893473107,2.5,1253.2,1253.0,2.5]
[1672893473315,6.68751541,1253.2,1253.0,2.5]
[1672893473520,3.0073,1253.1,1252.8,4.29041015]
[1672893473731,7.19481541,1253.1,1252.8,1.79041015]
[1672893473946,2.5,1253.0,1252.8,1.79041015]
[1672893478680,2.5,1253.0,1252.7,4.79771015]
[1672893478885,2.5,1253.0,1252.8,2.5]
[1672893484564,3.0073,1253.1,1252.8,4.29041015]
[1672893484993,2.5,1253.0,1252.8,4.29041015]
[1672893485298,2.5,1253.0,1252.8,2.5]
[1672893485510,2.5,1253.0,1252.8,4.29041015]
[1672893487088,10.87621541,1253.2,1252.8,4.29041015]
[1672893487823,7.86891541,1253.2,1252.8,4.29041015]
[1672893488352,10.87621541,1253.2,1252.8,4.29041015]
[1672893488553,9.69481541,1253.2,1252.8,4.29041015]
[1672893488764,3.0073,1253.2,1252.8,6.67661113]
[1672893488980,11.57093156,1253.3,1252.9,4.79771015]
[1672893489191,6.18751541,1253.3,1253.0,2.5]
[1672893490242,2.0,1253.3,1253.1,3.0073]
[1672893490558,9.69481541,1253.4,1253.1,3.0073]
[1672893490771,7.19481541,1253.4,1253.1,3.0073]
[1672893490982,9.69481541,1253.4,1253.2,1.5]
[1672893492245,7.19481541,1253.4,1253.2,1.5]
[1672893492453,5.5073,1253.4,1253.2,1.5]
[1672893493707,2.5,1253.3,1253.2,1.5]
[1672893493923,2.5,1253.3,1253.1,3.0073]
[1672893494240,2.5,1253.3,1253.2,2.5]
[1672893498334,2.5,1253.3,1253.0,6.70085213]
[1672893499389,2.5,1253.3,1253.0,3.69355213]
[1672893499599,2.5,1253.3,1253.0,6.70085213]
[1672893500549,2.5,1253.3,1253.0,3.69355213]
[1672893500763,2.5,1253.3,1253.0,6.70085213]
[1672893502757,2.5,1253.3,1253.0,3.69355213]
[1672893503175,2.5,1253.3,1253.0,6.70085213]
[1672893505489,2.5,1253.3,1253.0,3.69355213]
[1672893505698,2.5,1253.3,1253.0,6.70085213]
[1672893506959,2.5,1253.3,1253.0,3.69355213]
[1672893507171,2.5,1253.3,1253.0,6.70085213]
[1672893510429,2.5,1253.3,1253.0,8.49126228]
[1672893510844,2.5,1253.3,1253.0,6.70085213]
[1672893515269,2.5,1253.3,1253.0,8.49126228]
[1672893517255,2.5,1253.3,1253.1,1.19355213]
[1672893517579,2.5,1253.3,1253.0,8.49126228]
[1672893518420,6.68751541,1253.4,1253.0,8.49126228]
[1672893518623,6.68751541,1253.4,1253.1,1.19355213]
[1672893518944,2.5,1253.3,1253.1,4.20085213]
[1672893519155,2.5,1253.3,1253.2,2.5]
[1672893520835,2.5,1253.3,1253.1,4.20085213]
[1672893521457,2.5,1253.3,1253.1,3.0073]
[1672893523877,2.5,1253.3,1253.1,4.20085213]
[1672893524084,2.5,1253.3,1253.1,3.0073]
[1672893524831,2.5,1253.3,1253.0,5.48396228]
[1672893525146,2.5,1253.3,1253.1,1.19355213]
[1672893525356,6.68751541,1253.3,1253.1,1.19355213]
[1672893525881,6.68751541,1253.3,1253.0,8.49126228]
[1672893526609,6.68751541,1253.3,1253.0,8.48870194]
[1672893526933,6.68751541,1253.3,1253.1,1.19355213]
[1672893527454,6.68751541,1253.3,1253.0,8.48870194]
[1672893527658,11.47069686,1253.3,1253.0,8.48870194]
[1672893529449,11.47069686,1253.3,1253.0,5.48140194]
[1672893530820,11.47069686,1253.3,1253.1,1.19355213]
[1672893531344,11.47069686,1253.3,1253.0,5.48140194]
[1672893533130,11.47069686,1253.3,1253.1,1.19355213]
[1672893536178,11.47069686,1253.3,1253.0,5.48140194]
[1672893537440,4.18751541,1253.2,1253.0,5.48140194]
[1672893537650,2.5,1253.1,1253.0,5.48140194]
[1672893537957,9.69481541,1253.3,1253.0,4.28784981]
[1672893538166,9.69481541,1253.3,1253.1,1.19594757]
[1672893539014,6.68751541,1253.3,1253.1,1.19594757]
[1672893540488,6.68751541,1253.3,1253.1,2.98635772]
[1672893540798,6.68751541,1253.3,1253.2,2.5]
[1672893542477,4.18751541,1253.3,1253.2,2.5]
[1672893542689,11.47069686,1253.4,1253.2,2.5]
[1672893543950,2.5,1253.3,1253.2,2.5]
[1672893544782,2.5,1253.3,1253.1,7.49365772]
[1672893545203,6.68751541,1253.3,1253.1,5.70324757]
[1672893545413,6.68751541,1253.3,1253.2,2.5]
[1672893547842,6.68751541,1253.3,1253.1,7.49365772]
[1672893548049,6.68751541,1253.3,1253.1,4.48635772]
[1672893548260,6.68751541,1253.3,1253.1,7.49365772]
[1672893548468,6.68751541,1253.3,1253.2,2.5]
[1672893551315,6.68751541,1253.3,1253.1,7.49365772]
[1672893551520,6.68751541,1253.3,1253.1,4.48635772]
[1672893551729,6.68751541,1253.3,1253.1,7.49365772]
[1672893554681,6.68751541,1253.3,1253.1,5.70324757]
[1672893555519,6.68751541,1253.3,1253.1,2.69594757]
[1672893560355,4.18751541,1253.3,1253.1,2.69594757]
[1672893560673,6.68751541,1253.3,1253.1,2.69594757]
[1672893564244,4.18751541,1253.3,1253.1,2.69594757]
[1672893564557,4.18751541,1253.3,1253.1,4.48635772]
[1672893564769,6.68751541,1253.3,1253.1,4.48635772]
[1672893565181,6.68751541,1253.3,1253.1,2.69594757]
[1672893567074,4.18751541,1253.3,1253.1,4.48635772]
[1672893568657,4.18751541,1253.3,1253.1,2.69594757]
[1672893571923,6.68751541,1253.3,1253.1,2.69594757]
[1672893573932,6.68751541,1253.3,1253.1,4.48635772]
[1672893574231,6.68751541,1253.3,1253.1,2.69594757]
[1672893575075,6.68751541,1253.3,1253.1,4.48635772]
[1672893575810,6.68751541,1253.3,1253.1,2.69594757]
[1672893576125,6.68751541,1253.3,1253.1,4.48635772]
[1672893576967,6.68751541,1253.3,1253.1,2.69594757]
[1672893577170,6.68751541,1253.3,1253.1,4.48635772]
[1672893582646,6.68751541,1253.3,1253.1,2.98635772]
[1672893583486,6.68751541,1253.3,1253.1,1.19594757]
[1672893584225,6.68751541,1253.3,1253.1,2.98635772]
[1672893587163,4.18751541,1253.3,1253.1,2.98635772]
[1672893587576,6.68751541,1253.3,1253.1,2.98635772]
[1672893596841,4.18751541,1253.3,1253.1,2.98635772]
[1672893599044,6.68751541,1253.3,1253.1,2.98635772]
[1672893600406,4.18751541,1253.3,1253.1,2.98635772]
[1672893601990,4.18751541,1253.3,1253.1,1.19594757]
[1672893602304,8.97069686,1253.3,1253.1,1.19594757]
[1672893602627,4.18751541,1253.3,1253.1,1.19594757]
[1672893602935,4.18751541,1253.3,1253.1,2.98635772]
[1672893611035,4.18751541,1253.3,1253.1,5.99365772]
[1672893611769,4.18751541,1253.3,1253.2,1.19594757]
[1672893611973,4.18751541,1253.3,1253.2,2.5]
[1672893612293,4.18751541,1253.3,1253.2,3.69594757]
[1672893612819,4.18751541,1253.3,1253.2,2.5]
[1672893613448,6.68751541,1253.3,1253.2,1.19594757]
[1672893613662,6.68751541,1253.3,1253.2,2.5]
[1672893613869,4.18751541,1253.3,1253.2,2.5]
[1672893614289,6.68751541,1253.3,1253.1,5.99365772]
[1672893614503,6.68751541,1253.3,1253.2,2.5]
[1672893614710,4.18751541,1253.3,1253.2,2.5]
[1672893616391,4.18751541,1253.3,1253.1,5.99365772]
[1672893616610,4.18751541,1253.3,1253.2,2.5]
[1672893619866,4.18751541,1253.3,1253.1,5.99365772]
[1672893620606,4.18751541,1253.3,1253.2,2.5]
[1672893624177,4.18751541,1253.3,1253.1,5.99365772]
[1672893624382,4.18751541,1253.3,1253.2,2.5]
[1672893629744,4.18751541,1253.3,1253.1,5.99365772]
[1672893631636,4.18751541,1253.3,1253.1,2.98635772]
[1672893631837,4.18751541,1253.3,1253.1,5.99365772]
[1672893633942,4.18751541,1253.3,1253.1,2.98635772]
[1672893634159,4.18751541,1253.3,1253.1,5.99365772]
[1672893634472,6.68751541,1253.3,1253.1,5.99365772]
[1672893637518,4.18751541,1253.3,1253.1,5.99365772]
[1672893637836,4.18751541,1253.3,1253.1,2.98635772]
[1672893638147,4.18751541,1253.3,1253.1,5.99365772]
[1672893638671,4.18751541,1253.3,1253.1,2.98635772]
[1672893638881,4.18751541,1253.3,1253.1,5.99365772]
[1672893642875,4.18751541,1253.3,1253.1,2.98635772]
[1672893643295,4.18751541,1253.3,1253.1,5.99365772]
[1672893643610,4.18751541,1253.3,1253.1,2.98635772]
[1672893643822,4.18751541,1253.3,1253.1,5.99365772]
[1672893644136,4.18751541,1253.3,1253.1,2.98635772]
[1672893644453,4.18751541,1253.3,1253.1,5.99365772]
[1672893646768,4.18751541,1253.3,1253.1,2.98635772]
[1672893646976,4.18751541,1253.3,1253.1,5.99365772]
[1672893647819,4.18751541,1253.3,1253.1,2.98635772]
[1672893648135,4.18751541,1253.3,1253.1,5.99365772]
[1672893648339,4.18751541,1253.3,1253.1,2.98635772]
[1672893649080,4.18751541,1253.3,1253.1,5.99365772]
[1672893649709,4.18751541,1253.3,1253.1,2.98635772]
[1672893649922,4.18751541,1253.3,1253.1,5.99365772]
[1672893651814,4.18751541,1253.3,1253.1,2.98635772]
[1672893652024,4.18751541,1253.3,1253.1,5.99365772]
[1672893652343,4.18751541,1253.3,1253.1,2.98635772]
[1672893652656,4.18751541,1253.3,1253.1,5.99365772]
[1672893654860,4.18751541,1253.3,1253.2,1.19594757]
[1672893655179,4.18751541,1253.3,1253.2,3.69594757]
[1672893656439,11.47069686,1253.4,1253.2,3.69594757]
[1672893657170,6.68751541,1253.3,1253.2,3.69594757]
[1672893660958,4.18751541,1253.3,1253.2,3.69594757]
[1672893661699,11.47069686,1253.4,1253.2,3.69594757]
[1672893663379,6.68751541,1253.4,1253.2,3.69594757]
[1672893664008,2.5,1253.3,1253.2,1.19594757]
[1672893664957,6.68751541,1253.3,1253.2,1.19594757]
[1672893666527,4.18751541,1253.3,1253.2,1.19594757]
[1672893666740,11.47069686,1253.4,1253.2,3.69594757]
[1672893668416,2.5,1253.3,1253.2,1.19594757]
[1672893673359,2.5,1253.3,1253.1,5.99365772]
[1672893673673,6.68751541,1253.3,1253.1,5.99365772]
[1672893674099,6.68751541,1253.3,1253.1,2.98635772]
[1672893674309,6.68751541,1253.3,1253.1,5.99365772]
[1672893676307,4.18751541,1253.3,1253.2,2.5]
[1672893677031,6.68751541,1253.3,1253.2,2.5]
[1672893677663,6.68751541,1253.3,1253.1,7.49365772]
[1672893678300,6.68751541,1253.3,1253.1,2.69594757]
[1672893680185,2.5,1253.2,1253.1,1.19594757]
[1672893683864,6.68751541,1253.3,1253.1,1.19594757]
[1672893686811,2.5,1253.2,1253.1,1.19594757]
[1672893696264,2.5,1253.2,1253.0,8.49109738]
[1672893700381,6.68751541,1253.3,1253.1,1.19594757]
[1672893701536,2.5,1253.2,1253.1,1.19594757]
[1672893703115,2.5,1253.2,1253.0,8.49109738]
[1672893704258,2.5,1253.2,1253.0,5.48379738]
[1672893707210,2.5,1253.2,1253.1,1.19594757]
[1672893711736,2.5,1253.2,1253.0,5.48379738]
[1672893712050,6.68751541,1253.2,1253.0,5.48379738]
[1672893714361,6.68751541,1253.2,1253.0,2.98635772]
[1672893720242,6.68751541,1253.2,1253.0,2.98078678]
[1672893721184,6.68751541,1253.2,1253.0,1.19594757]
[1672893721822,9.69481541,1253.2,1253.0,1.19594757]
[1672893723919,6.68751541,1253.2,1253.0,1.19594757]
[1672893724128,9.69481541,1253.2,1253.0,1.19594757]
[1672893724660,6.68751541,1253.2,1253.0,1.19594757]
[1672893728545,4.18751541,1253.2,1253.0,1.19594757]
[1672893728756,10.29048145,1253.3,1253.0,1.19594757]
[1672893728757,14.47799686,1253.3,1253.0,1.19594757]
[1672893729500,9.69481541,1253.3,1253.0,1.19594757]
[1672893729920,14.47799686,1253.3,1253.0,1.19594757]
[1672893731282,2.5,1253.1,1253.0,1.19594757]
[1672893732228,2.5,1253.1,1253.0,4.20324757]
[1672893732440,14.47799686,1253.3,1253.0,4.20324757]
[1672893732759,11.47069686,1253.3,1253.0,1.19594757]
[1672893733066,11.47069686,1253.3,1253.0,4.20324757]
[1672893734438,11.47069686,1253.3,1253.0,1.19594757]
[1672893734652,11.47069686,1253.3,1253.0,4.20324757]
[1672893735180,4.18751541,1253.2,1253.0,4.20324757]
[1672893735384,2.5,1253.1,1253.0,4.20324757]
[1672893737375,2.5,1253.1,1253.0,1.19594757]
[1672893743160,4.18751541,1253.2,1253.0,1.19594757]
[1672893743687,2.5,1253.1,1253.0,1.19594757]
[1672893745052,2.5,1253.1,1252.9,4.20324757]
[1672893745367,5.5073,1253.1,1252.9,1.19594757]
[1672893745564,9.69481541,1253.1,1252.9,1.19594757]
[1672893746730,9.69481541,1253.1,1252.9,2.5]
[1672893747669,9.69481541,1253.1,1252.8,3.69594757]
[1672893748406,6.68751541,1253.1,1252.8,3.69594757]
[1672893748614,9.69481541,1253.1,1252.8,3.69594757]
[1672893749778,6.68751541,1253.1,1252.8,3.69594757]
[1672893750090,9.69481541,1253.1,1252.8,3.69594757]
[1672893751770,6.68751541,1253.1,1252.8,6.70324757]
[1672893754293,9.69481541,1253.1,1252.8,3.69594757]
[1672893756395,6.68751541,1253.1,1252.8,3.69594757]
[1672893760504,9.69481541,1253.1,1252.8,3.69594757]
[1672893760819,6.68751541,1253.1,1252.8,3.69594757]
[1672893761027,9.69481541,1253.1,1252.8,3.69594757]
[1672893762077,6.68751541,1253.1,1252.8,3.69594757]
[1672893762603,2.5,1253.1,1252.8,3.69594757]
[1672893762813,2.5,1253.1,1252.8,6.70324757]
[1672893763970,6.68751541,1253.1,1252.8,6.70324757]
[1672893765124,2.5,1253.1,1252.8,6.70324757]
[1672893765754,2.5,1253.1,1252.9,1.19594757]
[1672893765967,2.5,1253.1,1253.0,2.5]
[1672893766281,9.69481541,1253.2,1253.0,2.5]
[1672893767855,6.68751541,1253.2,1253.0,2.5]
[1672893769231,4.18751541,1253.2,1253.0,2.5]
[1672893769432,6.68751541,1253.3,1253.0,3.69594757]
[1672893773325,9.69481541,1253.3,1253.0,3.69594757]
[1672893775117,9.69481541,1253.3,1253.0,6.70324757]
[1672893775743,9.69481541,1253.3,1253.0,3.69594757]
[1672893775961,9.69481541,1253.3,1253.0,6.70324757]
[1672893778481,6.68751541,1253.3,1253.0,3.69594757]
[1672893778692,9.69481541,1253.3,1253.0,6.70324757]
[1672893784151,9.69481541,1253.3,1253.0,5.5073]
[1672893784985,6.68751541,1253.3,1253.0,2.5]
[1672893785194,9.69481541,1253.3,1253.0,5.5073]
[1672893785518,9.69481541,1253.3,1253.0,6.70324757]
[1672893786569,9.69481541,1253.3,1253.0,5.5073]
[1672893786768,6.68751541,1253.3,1253.0,2.5]
[1672893786983,9.69481541,1253.3,1253.0,2.5]
[1672893787616,9.69481541,1253.3,1253.0,3.69594757]
[1672893789616,6.68751541,1253.3,1253.0,3.69594757]
[1672893789821,9.69481541,1253.3,1253.0,6.70324757]
[1672893790975,4.18751541,1253.3,1253.2,3.0073]
[1672893791188,11.97799686,1253.5,1253.2,3.0073]
[1672893791401,11.97799686,1253.5,1253.2,4.20324757]
[1672893791402,4.18751541,1253.5,1253.2,4.20324757]
[1672893791715,2.5,1253.4,1253.3,2.5]
[1672893792137,2.5,1253.5,1253.3,2.5]
[1672893796984,2.5,1253.5,1253.3,5.5073]
[1672893797299,2.5,1253.5,1253.3,2.5]
[1672893797509,2.5,1253.5,1253.3,5.5073]
[1672893798559,2.5,1253.5,1253.3,2.5]
[1672893798767,2.5,1253.5,1253.3,5.5073]
[1672893798977,2.5,1253.5,1253.3,2.5]
[1672893799188,2.5,1253.5,1253.3,5.5073]
[1672893800551,6.68751541,1253.5,1253.3,5.5073]
[1672893801083,6.68751541,1253.5,1253.3,2.5]
[1672893801399,2.5,1253.5,1253.3,2.5]
[1672893802867,9.69481541,1253.6,1253.3,2.5]
[1672893803284,2.5,1253.5,1253.3,2.5]
[1672893803920,9.69481541,1253.6,1253.4,3.0073]
[1672893804124,2.5,1253.5,1253.4,3.0073]
[1672893806649,2.5,1253.5,1253.3,2.5]
[1672893808026,2.5,1253.5,1253.3,5.5073]
[1672893808539,2.5,1253.5,1253.3,2.5]
[1672893808751,2.5,1253.5,1253.3,5.5073]
[1672893812745,6.68751541,1253.6,1253.3,5.5073]
[1672893813157,2.5,1253.6,1253.3,5.5073]
[1672893813365,6.68751541,1253.6,1253.3,5.5073]
[1672893816420,6.68751541,1253.6,1253.3,2.5]
[1672893816631,6.68751541,1253.6,1253.3,5.5073]
[1672893816834,6.68751541,1253.6,1253.4,3.0073]
[1672893818204,6.68751541,1253.6,1253.3,5.5073]